Cogmind - Beta 12 @@@ ROGUE MODE // 2023.12.08 @ 12:33:30 Player: Benkyo Result: Destroyed by AD-0RF with AD-0RF's Magmablaster Performance ------------- Evolutions (1) 500 Regions Visited (6) 1200 Robots Destroyed (92) 460 Value Destroyed (1965) 1965 Prototype IDs (33) 660 Alien Tech Used (0) 0 Bonus (458) 458 TOTAL SCORE: 5243 Bonus ------- High Alert Combat Kills 158 Aligned with FarCom 300 Cogmind --------- Core Integrity 0/400 Matter 141/300 Energy 305/310 System Corruption 1% Temperature Hot (203) Movement Core (1900) Ox37 Location -8/Mines Parts ------- > --- POWER (1) -------- Reinforced Fission Core > --- PROPULSION (2) --- (None) > --- UTILITY (4) ------ Experimental Heat Sink Huge Storage Unit Experimental Core Analyzer Makeshift Armor Plating > --- WEAPON (2) ------- Improved Assault Rifle 8R-AWN's Boregun > --- INVENTORY (25) --- Deuterium Engine Cold Fusion Reactor Advanced Myomer Leg Wheel Combat Antigrav System Cooling System Cooling System Compact Matter Pod (150) Structural Scanner Advanced Targeting Computer Improved Target Analyzer Improved Armor Integrity Analyzer Improved System Guard High-powered Tractor Beam Improved Trap Extractor (3/6 Dirty Bomb) Advanced Recalibrator Beamcaster Improved Assault Rifle Improved Light Cannon Rocket Launcher Mini Grenade Launcher Improved Datajack Makeshift Hammer Peak State ------------ > --- POWER ------------ Reinforced Fission Core > --- PROPULSION ------- Light Treads Light Treads > --- UTILITY ---------- Experimental Heat Sink Huge Storage Unit Experimental Core Analyzer Makeshift Armor Plating > --- WEAPON ----------- Improved Assault Rifle 8R-AWN's Boregun > --- INVENTORY -------- Deuterium Engine Cold Fusion Reactor Advanced Myomer Leg Wheel Combat Antigrav System Cooling System Cooling System Compact Matter Pod Structural Scanner Improved Target Analyzer Improved Armor Integrity Analyzer Improved System Guard High-powered Tractor Beam Improved Trap Extractor Advanced Recalibrator Beamcaster Improved Assault Rifle Improved Assault Rifle Improved Light Cannon Rocket Launcher Mini Grenade Launcher Improved Datajack Makeshift Hammer [Rating: 52] Favorites ----------- Power Deuterium Engine Engine Deuterium Engine Power Core Reinforced Fission Core Reactor Cold Fusion Reactor Propulsion Light Treads Treads Light Treads Leg Advanced Myomer Leg Wheel Wheel Hover Unit Backup Propulsion I Utility Huge Storage Unit Device Cooling System Storage Huge Storage Unit Processor Experimental Core Analyzer Protection Light Armor Plating Weapon High-powered Shotgun Energy Gun EM Pulse Gun Energy Cannon Guided Plasma Cannon Ballistic Gun High-powered Shotgun Launcher Mini Grenade Launcher Impact Weapon Makeshift Hammer Build | -11 -10 -10 -9 -9 -9 -8 ------- Run | Jun Mat Min Mat Min Exi Min Slots Evolved 2 | . . . 2 . . . Power . | . . . . . . . Propulsion . | . . . . . . . Utility 2 | . . . 2 . . . Weapon . | . . . . . . . Parts Attached 106 | 8 8 6 45 5 31 3 Power 11 | 1 . 1 4 . 5 . Engine 7 | 1 . . 4 . 2 . Core 3 | . . 1 . . 2 . Reactor 1 | . . . . . 1 . Propulsion 19 | 2 1 1 5 2 8 . Treads 15 | 2 1 1 4 1 6 . Leg 1 | . . . . . 1 . Wheel 2 | . . . . 1 1 . Hover 1 | . . . 1 . . . Flight . | . . . . . . . Utility 37 | 2 3 1 17 3 9 2 Device 18 | 1 2 . 9 1 4 1 Storage 2 | 1 1 . . . . . Processor 1 | . . . . . 1 . Hackware . | . . . . . . . Protection 16 | . . 1 8 2 4 1 Artifact . | . . . . . . . Weapon 39 | 3 4 3 19 . 9 1 Energy Gun 3 | 2 . . 1 . . . Energy Cannon 2 | . . . . . 2 . Ballistic Gun 26 | 1 4 2 12 . 6 1 Ballistic Cannon . | . . . . . . . Launcher 7 | . . 1 5 . 1 . Special Weapon . | . . . . . . . Impact Weapon 1 | . . . 1 . . . Slashing Weapon . | . . . . . . . Piercing Weapon . | . . . . . . . Special Melee Weapon . | . . . . . . . Unidentified Prototypes 7 | . . . 2 . 5 . Parts Lost 22 | . 5 1 4 . 9 3 Power 1 | . . . . . 1 . Propulsion 8 | . 1 1 1 . 3 2 Utility 8 | . 1 . 3 . 4 . Weapon 5 | . 3 . . . 1 1 Highest Loss Streak 8 | . 2 1 1 . 8 3 To Critical Strikes 5 | . . . 1 . 4 . Average Slot Usage (%) 97 | . 100 100 99 100 87 96 Engine 10 | . 14 13 9 11 6 . Core 1 | . . . 1 . 4 11 Treads 23 | . 28 28 22 21 21 18 Device 13 | . 14 9 18 11 11 11 Storage 11 | . 14 14 11 11 11 11 Protection 13 | . . 4 13 21 18 10 Energy Gun 1 | . 11 . . . . . Ballistic Gun 19 | . 16 27 21 22 9 22 Naked Turns . | . . . . . . . Heaviest Build 116 | 15 90 91 105 107 116 114 Greatest Support 40 | 40 40 40 40 40 40 40 Greatest Overweight (x) 10 | 2 2 2 2 10 10 2 Average Overweight (x) 1 | . . 2 2 2 2 2 Largest Inventory Capacity 25 | 8 25 25 25 25 25 25 Average Capacity 24 | 7 18 25 25 25 25 25 Most Carried 25 | 6 10 25 25 25 25 24 Average Carried 21 | 3 8 18 24 24 21 23 Final Capacity 25 | 8 25 25 25 25 25 25 Final Carried 25 | 6 7 24 25 25 23 23 Class Distribution -------------------- 84% | Mutant 10% | Scavenger-Mutant 5% | Trapper-Mutant Dominant Class ---------------- Mutant | -10/Materials Mutant | -10/Mines Mutant | -9/Materials Mutant | -9/Mines Scavenger-Mutant | -9/Exiles Scavenger-Mutant | -8/Mines Resources | -11 -10 -10 -9 -9 -9 -8 ----------- Run | Jun Mat Min Mat Min Exi Min Matter Collected 3611 | 291 282 378 1521 175 964 . Remotely 59 | . . . . . 59 . Salvage Created 3056 | 78 523 189 1819 12 415 20 Parts 245 | 8 38 11 130 . 58 . Haulers Intercepted 5 | . 2 . 3 . . . Recyclers Shooed 2 | . . . 2 . . . Parts Field Recycled . | . . . . . . . Retrieved Matter . | . . . . . . . Parts Self-Destructed . | . . . . . . . Prevented . | . . . . . . . Kills | -11 -10 -10 -9 -9 -9 -8 ------- Run | Jun Mat Min Mat Min Exi Min Combat Hostiles Destroyed 60 | . 10 6 37 3 4 . Guns 59 | . 10 6 37 3 3 . Cannons 1 | . . . . . 1 . Classes Destroyed 16 | 2 5 . 6 1 2 . Worker 7 | . 2 . 4 . . 1 Builder 3 | . . . 3 . . . Tunneler 1 | 1 . . . . . . Hauler 5 | . 2 . 3 . . . Recycler 3 | 1 . . 2 . . . Mechanic 1 | . . . 1 . . . Operator 1 | . . . 1 . . . Turret 1 | . . . . . 1 . Watcher 8 | . 3 . 5 . . . Swarmer 13 | . 4 2 7 . . . Grunt 28 | . 6 4 18 . . . Brawler 1 | . . . 1 . . . Duelist 1 | . . . 1 . . . Sentry 10 | . . . 10 . . . Zionite 6 | . . . . . 6 . Assembled 6 | . . . . 3 3 . Best Kill Streak 5 | 1 4 2 5 1 4 1 Combat Bots Only 5 | . 3 2 5 1 3 . Max Kills in Single Turn 2 | 1 1 1 2 1 1 1 Gunslinging 1 | . . . 1 . . . Exploded . | . . . . . . . Melee . | . . . . . . . Uniques/NPCs Destroyed 4 | . . . . . 4 . 8R-AWN (-9/Exiles) EX-DEC (-9/Exiles) EX-HEX (-9/Exiles) EX-BIN (-9/Exiles) Combat | -11 -10 -10 -9 -9 -9 -8 -------- Run | Jun Mat Min Mat Min Exi Min Damage Taken 4120 | 8 643 213 1150 104 1225 777 Core 541 | . 102 34 78 . 160 167 Absorbed by Shields 236 | . . . 236 . . . Redirected to Shielding 97 | . . 26 71 . . . Core Remaining (%) 72 | 100 . 45 . . . . Volleys Fired 308 | 7 53 18 123 11 80 16 Largest 2 | 2 2 2 2 2 2 2 Hottest 120 | 60 80 45 48 48 120 53 Shots Fired 590 | 14 104 36 239 21 144 32 Gun 572 | 14 104 35 234 21 132 32 Cannon 12 | . . . . . 12 . Launcher 6 | . . 1 5 . . . Special . | . . . . . . . Kinetic 535 | 7 74 35 234 21 132 32 Thermal 12 | . . . . . 12 . Explosive 6 | . . 1 5 . . . Electromagnetic 37 | 7 30 . . . . . Robot Hit Streak 22 | 4 11 8 10 7 22 10 Robot Miss Streak 6 | 2 5 1 6 3 5 2 Penetration Max 1 | . . . . . 1 1 Secondary Targets 7 | . 3 . 3 . 1 . Max Gunslinging Chain 1 | . 1 . 1 . 1 . Shots Hit Robots 392 | 9 62 27 164 10 93 27 Core Hits 174 | 3 27 15 80 6 34 9 Critical Kills 3 | . . . 1 . 1 1 Critical Parts Destroyed 11 | . . . 3 . 5 3 Critical Strikes 17 | . . . 4 . 6 7 Destroy 17 | . . . 4 . 6 7 Melee Attacks 1 | . . . 1 . . . Impact 1 | . . . 1 . . . Slashing . | . . . . . . . Piercing . | . . . . . . . Sneak Attacks . | . . . . . . . Combat Hostiles . | . . . . . . . Follow-up Attacks . | . . . . . . . Damage Inflicted 6459 | 127 724 298 2907 168 1783 452 Guns 6017 | 106 724 298 2907 168 1362 452 Cannons 421 | . . . . . 421 . Explosions 21 | 21 . . . . . . Melee . | . . . . . . . Ramming . | . . . . . . . Kinetic 5752 | 51 514 298 2907 168 1362 452 Thermal 442 | 21 . . . . 421 . Explosive . | . . . . . . . Electromagnetic 265 | 55 210 . . . . . Impact . | . . . . . . . Slashing . | . . . . . . . Piercing . | . . . . . . . Highest Corruption 3 | . 3 3 1 1 1 1 Average Corruption 1 | . 2 3 1 1 1 1 Corruption Purged . | . . . . . . . Corruption Blocked . | . . . . . . . Effects 111 | . 11 33 28 20 19 . Message Errors 20 | . 1 4 7 2 6 . Matter Fused 29 | . 3 9 7 4 6 . Heat Flow Errors 10 | . . 5 2 2 1 . Energy Discharges 19 | . 1 8 4 5 1 . Parts Rejected 2 | . 2 . . . . . Parts Fused 1 | . . . 1 . . . Data Loss (minor) 16 | . 2 5 3 5 1 . Data Loss (major) 6 | . . 1 2 1 2 . Misfires 3 | . . 1 1 . 1 . Alerts 2 | . . . . 1 1 . Weapon Failures 3 | . 2 . 1 . . . Overload Shots . | . . . . . . . Overflow Damage . | . . . . . . . Projectiles . | . . . . . . . Explosions . | . . . . . . . Melee . | . . . . . . . Knockbacks . | . . . . . . . Impact . | . . . . . . . Kinetic . | . . . . . . . Secondary . | . . . . . . . Self-Inflicted Damage 8 | 8 . . . . . . Shots 1 | 1 . . . . . . Rammed . | . . . . . . . Targets Rammed . | . . . . . . . Kicked . | . . . . . . . Crushed . | . . . . . . . Highest Temperature 245 | 12 72 245 243 219 222 183 Average Temperature 51 | 12 20 62 39 88 55 76 Received Heat Transfer 1910 | . 234 96 320 60 . 1200 Siege Activations . | . . . . . . . Robots Corrupted . | . . . . . . . Combat Hostiles . | . . . . . . . Parts Fried 1 | . 1 . . . . . Impact Corruptions . | . . . . . . . Robots Melted . | . . . . . . . Combat Hostiles . | . . . . . . . Parts Melted . | . . . . . . . Heat Transferred 530 | 50 . . . . 480 . Parts Sabotaged . | . . . . . . . Parts Stolen . | . . . . . . . Parts Stripped . | . . . . . . . Power Chain Reactions 1 | 1 . . . . . . Missiles Intercepted . | . . . . . . . Alert | -11 -10 -10 -9 -9 -9 -8 ------- Run | Jun Mat Min Mat Min Exi Min Peak Influence 755 | 10 223 55 755 288 . 8 Initial 288 | . 6 35 15 288 . . Average 197 | 5 62 17 407 69 . . Maximum Alert Level 3 | . 1 . 3 1 . . Low Security (%) 62 | 100 96 100 22 82 . 100 Level 1 11 | . 3 . 16 17 . . Level 2 23 | . . . 56 . . . Level 3 2 | . . . 5 . . . Level 4 . | . . . . . . . Level 5 . | . . . . . . . High Security . | . . . . . . . Max Security . | . . . . . . . Squads Dispatched 12 | . 4 . 7 1 . . Investigation 7 | . 3 . 4 . . . Extermination . | . . . . . . . Reinforcement 4 | . 1 . 3 . . . Assault 1 | . . . . 1 . . Garrison . | . . . . . . . Intercept . | . . . . . . . Searches Triggered . | . . . . . . . Construction Impeded . | . . . . . . . Haulers Reinforced . | . . . . . . . Active Scanning Responses . | . . . . . . . Cargo Convoy Interrupts . | . . . . . . . Stealth | -11 -10 -10 -9 -9 -9 -8 --------- Run | Jun Mat Min Mat Min Exi Min Distress Signals 1 | . . . 1 . . . Communications Jammed . | . . . . . . . Distress Signals . | . . . . . . . Times Spotted 132 | . 17 7 54 6 47 1 Peak Tracking Total 9 | . 3 2 3 1 9 1 Tactical Retreats 25 | . 1 . 3 2 19 . Traps | -11 -10 -10 -9 -9 -9 -8 ------- Run | Jun Mat Min Mat Min Exi Min Traps Triggered 12 | . 7 1 4 . . . Indirectly . | . . . . . . . Trap Hack Attempts . | . . . . . . . Triggered . | . . . . . . . Disarmed . | . . . . . . . Reprogrammed . | . . . . . . . Reused . | . . . . . . . Traps Extracted 6 | . . . . 6 . . Installed 2 | . . . . 1 . 1 Triggered . | . . . . . . . Most Traps Carried 5 | . . 3 3 5 5 5 Exploded 3 | . . . . . 3 . Machines | -11 -10 -10 -9 -9 -9 -8 ---------- Run | Jun Mat Min Mat Min Exi Min Machines Disabled 14 | . . . 1 1 12 . Max in Single Turn 1 | . . . 1 1 1 . Machines Repaired . | . . . . . . . Machines Sabotaged . | . . . . . . . Overloaded Fab Kills . | . . . . . . . Hacking | -11 -10 -10 -9 -9 -9 -8 --------- Run | Jun Mat Min Mat Min Exi Min Machines Accessed 19 | . 6 1 10 . 2 . Terminals 12 | . 5 . 7 . . . Fabricators . | . . . . . . . Repair Stations . | . . . . . . . Recycling Units 3 | . 1 . 2 . . . Scanalyzers 1 | . . . 1 . . . Garrison Access . | . . . . . . . Total Hacks 53 | . 17 1 33 . 2 . Successful 30 | . 7 1 20 . 2 . Failed 23 | . 10 . 13 . . . Catastrophic 3 | . 1 . 2 . . . Database Lockouts . | . . . . . . . Manual 29 | . 14 . 14 . 1 . Terminals 38 | . 16 . 22 . . . Fabricators . | . . . . . . . Repair Stations . | . . . . . . . Recycling Units 5 | . 1 . 4 . . . Scanalyzers 7 | . . . 7 . . . Garrison Access . | . . . . . . . Terminal Hacks 15 | . 4 1 8 . 2 . Record 1 | . . . . . 1 . Part Schematic 1 | . 1 . . . . . Robot Analysis 8 | . 3 . 5 . . . Prototype ID Bank 2 | . . . 2 . . . Open Door 1 | . . 1 . . . . Hauler Manifests 1 | . . . 1 . . . EX-Prototype ID Bank 1 | . . . . . 1 . Fabricator Hacks . | . . . . . . . Repair Station Hacks . | . . . . . . . Recycling Unit Hacks 1 | . . . 1 . . . Retrieve Components 1 | . . . 1 . . . Scanalyzer 7 | . . . 7 . . . Insert Component 3 | . . . 3 . . . Analyze 4 | . . . 4 . . . Garrison Access Hacks . | . . . . . . . Unauthorized Hacks 7 | . 3 . 4 . . . Terminals 4 | . 2 . 2 . . . Botnet 4 | . 2 . 2 . . . Fabricators . | . . . . . . . Repair Stations . | . . . . . . . Recycling Units 3 | . 1 . 2 . . . Tunnel 3 | . 1 . 2 . . . Scanalyzers . | . . . . . . . Garrison Access . | . . . . . . . Data Cores Recovered . | . . . . . . . Used . | . . . . . . . Hacking Detections 12 | . 5 . 7 . . . Full Trace Events . | . . . . . . . Feedback Events . | . . . . . . . Feedback Blocked . | . . . . . . . Robot Schematics Acquired . | . . . . . . . Robots Built . | . . . . . . . Authchips . | . . . . . . . Time . | . . . . . . . Total Robot Build Rating . | . . . . . . . Part Schematics Acquired 4 | . 1 . 3 . . . Parts Built . | . . . . . . . Authchips . | . . . . . . . Time . | . . . . . . . Total Part Build Rating . | . . . . . . . Parts Repaired . | . . . . . . . Time . | . . . . . . . Parts Recycled . | . . . . . . . Recycled Matter . | . . . . . . . Retrieved Matter . | . . . . . . . Retrieved Components 9 | . . . 9 . . . Parts Scanalyzed 3 | . . . 3 . . . Part Schematics Acquired 3 | . . . 3 . . . Parts Damaged . | . . . . . . . Bothacking | -11 -10 -10 -9 -9 -9 -8 ------------ Run | Jun Mat Min Mat Min Exi Min Used RIF Installer . | . . . . . . . Robots Hacked . | . . . . . . . Non-combat . | . . . . . . . Combat . | . . . . . . . Robot Hacks Applied . | . . . . . . . Relay Couplers Released . | . . . . . . . Fabnet Peak Effective % . | . . . . . . . Robots Rewired . | . . . . . . . Allies Hacked . | . . . . . . . Hacks Repelled . | . . . . . . . Allies | -11 -10 -10 -9 -9 -9 -8 -------- Run | Jun Mat Min Mat Min Exi Min Total Allies 1 | . . . . 1 . . Largest Group 1 | . . . . 1 1 . Highest-Rated Group 31 | . . . . 31 31 . Highest-Rated Ally 31 | . . . . 31 31 . Total Orders . | . . . . . . . Ally Attacks 10 | . . . . 7 3 . Total Damage 124 | . . . . 104 20 . Kills 2 | . . . . 1 1 . Allies Corrupted . | . . . . . . . Allies Melted . | . . . . . . . Intel | -11 -10 -10 -9 -9 -9 -8 ------- Run | Jun Mat Min Mat Min Exi Min Robot Analysis Total 8 | . 3 . 5 . . . Derelict Logs Recovered 4 | . . 3 . 1 . . Drone Launches . | . . . . . . . Drone Recoveries . | . . . . . . . Exploration | -11 -10 -10 -9 -9 -9 -8 ------------- Run | Jun Mat Min Mat Min Exi Min Turns Passed 12058 | 113 1145 1932 4055 2250 2385 178 Spaces Moved 3482 | 44 409 571 1085 682 652 39 Core 15 | 15 . . . . . . Treads 3409 | 29 409 571 1085 639 637 39 Legs . | . . . . . . . Wheels 58 | . . . . 43 15 . Hover . | . . . . . . . Flight . | . . . . . . . Fastest Speed 50 | 50 160 320 320 230 230 320 Average Speed 306 | 137 236 320 320 314 317 320 Slowest Speed 320 | 160 320 320 320 320 320 320 Overloaded Moves . | . . . . . . . Propulsion Burnouts . | . . . . . . . Robots Hopped . | . . . . . . . Cave-ins Triggered . | . . . . . . . Exploration Rate (%) 66 | 4 79 100 87 98 82 17 Regions Visited 6 Branch Regions 4 Pre-discovered Areas 7 | . 1 1 2 2 1 . Known Exits Taken 1 | . . . 1 . . . Unknown Exits Taken 5 | 1 1 1 . 1 1 . Scrap Searched 5 | . . 3 . 1 . 1 Spaces Dug 16 | . . 15 1 . . . Terrain Destroyed 85 | . . 15 52 . 11 7 Melee 1 | . . . 1 . . . Projectile 17 | . . . . . 11 6 AOE 66 | . . 15 51 . . . Terrain Rammed . | . . . . . . . Walls Destroyed . | . . . . . . . Machines Disabled . | . . . . . . . Actions | -11 -10 -10 -9 -9 -9 -8 --------- Run | Jun Mat Min Mat Min Exi Min Total 4308 | 79 492 647 1437 768 823 62 Wait 272 | 15 11 30 116 67 31 2 Move 3476 | 43 408 570 1084 681 651 39 Hop . | . . . . . . . Pick Up 90 | 6 9 20 36 1 17 1 Fast Attach 14 | 7 2 . 3 1 1 . Attach 25 | . 5 1 8 . 10 1 Detach 3 | . . . 1 . 2 . Swap 67 | 1 1 5 34 4 20 2 Drop 50 | . 3 3 31 2 11 . Fire 308 | 7 53 18 123 11 80 16 Melee 1 | . . . 1 . . . Ram . | . . . . . . . Kick . | . . . . . . . Crush . | . . . . . . . Escape Stasis . | . . . . . . . Rewire . | . . . . . . . Trap 2 | . . . . 1 . 1 Miscellaneous . | . . . . . . . Route ------- -11/Junkyard -10/Materials (discovered 4 exits: *Mat x2 / *Min x2) -10/Mines (discovered 2 exits: *Mat x2) -9/Materials (discovered 5 exits: [*Mat x3] / *Min x2) -9/Mines (discovered 4 exits: [*Mat x2] / *Exi / [*Zio]) -9/Exiles -8/Mines (discovered 1 exit: [*Mat]) History --------- Turn | Location | Event 15 | -11/Junkyard | Discovered new exit (range 15) 114 | -11/Junkyard | Entered Materials 159 | -10/Materials | Discovered new exit (range 12) 311 | -10/Materials | Build established: Mutant 484 | -10/Materials | Discovered new exit (range 10) 1078 | -10/Materials | Discovered new exit (range 5) 1214 | -10/Materials | Discovered new exit (range 11) 1259 | -10/Materials | Entered Mines 1320 | -10/Mines | Learned location of Zion (-7) 1330 | -10/Mines | Received a Rocket Launcher from a helpful Derelict 1525 | -10/Mines | Found a hidden stash of uninstalled traps 1826 | -10/Mines | Discovered new exit (range 13) 2109 | -10/Mines | Learned Materials terminal intel 2453 | -10/Mines | Met a Derelict who couldn't figure out how to use a Trap Extractor 2773 | -10/Mines | Learned 4 Materials zone layouts 3066 | -10/Mines | A weapon hastily lodged in a ceiling crevice suddenly fell to the ground 3117 | -10/Mines | Core integrity fell below 50% 3168 | -10/Mines | Discovered new exit (range 8) 3191 | -10/Mines | Entered Materials 3191 | -9/Materials | Evolved 2 slots: Utility x2 3192 | -9/Materials | Identified exit to Mines 3193 | -9/Materials | Loaded intel: 11 terminal locations 3802 | -9/Materials | Discovered exit to Mines (range 7) 4966 | -9/Materials | Discovered new exit (range 16) 5775 | -9/Materials | Discovered new exit (range 7) 6650 | -9/Materials | Discovered new exit (range 10) 7246 | -9/Materials | Entered Mines 7344 | -9/Mines | A Derelict revealed a hidden shortcut to a safe place 7497 | -9/Mines | Learned location of Storage (-8) 7544 | -9/Mines | Deemed a non-threat by the Exiles lab entrance 7544 | -9/Mines | Discovered new exit (range 5) 7683 | -9/Mines | Assembled infested the area 7688 | -9/Mines | Assisted by a Guerilla fighting off Assembled 8345 | -9/Mines | Met a Derelict testing a Signal Generator 8347 | -9/Mines | Discovered new exit (range 10) 8773 | -9/Mines | Discovered new exit (range 6) 9496 | -9/Mines | Entered Exiles 9496 | -9/Exiles | Accompanied by 1 ally 9580 | -9/Exiles | Met 8R-AWN 9634 | -9/Exiles | Met EX-HEX 9762 | -9/Exiles | Met EX-DEC 10259 | -9/Exiles | Met EX-BIN 10298 | -9/Exiles | Aligned with FarCom system 10301 | -9/Exiles | Given EX-Vault access code 10366 | -9/Exiles | Build established: Trapper-Mutant 10375 | -9/Exiles | Opened EX-Vault 10398 | -9/Exiles | Found Gui. Plasma Cannon 10463 | -9/Exiles | Warned to stay clear of 0b10 Research branches 10721 | -9/Exiles | Attacked by the Exiles 10888 | -9/Exiles | Core integrity fell below 50% 10913 | -9/Exiles | Destroyed 8R-AWN 10922 | -9/Exiles | Lost 8 parts (1p3n3u1w) 11006 | -9/Exiles | Found Prototype Ballistic Gun 11007 | -9/Exiles | Identified 8R-AWN's Boregun 11237 | -9/Exiles | Destroyed EX-DEC 11278 | -9/Exiles | Destroyed EX-HEX 11294 | -9/Exiles | Build established: Scavenger-Mutant 11311 | -9/Exiles | Destroyed EX-BIN 11391 | -9/Exiles | Found Prototype Processor 11494 | -9/Exiles | Identified Exp. Core Analyzer 11842 | -9/Exiles | Discovered new exit (range 14) 11881 | -9/Exiles | Entered Mines 11985 | -8/Mines | Discovered new exit (range 13) 12010 | -8/Mines | AD-0RF came to Exiles' defense 12048 | -8/Mines | Core integrity fell below 20% 12059 | -8/Mines | Destroyed by AD-0RF with AD-0RF's Magmablaster Last Messages --------------- 12047_ AD-0RF suffers critical hit (Destroy). 12047_ Destroyed Prototype Device. 12047_ HV Slug penetrates Wall. 12050_ HV Slug penetrates K-01 Serf. 12050_ K-01 Serf suffers critical hit (Destroy). 12050_ K-01 Serf destroyed. 12050_ HV Slug penetrates AD-0RF. 12050_ AD-0RF suffers critical hit (Destroy). 12051_ U-05 Engineer builds a Wall. 12053_ HV Slug penetrates AD-0RF. 12053_ AD-0RF suffers critical hit (Destroy). 12053_ Destroyed Unknown Wheel. 12053_ HV Slug penetrates Wall. 12053_ K-01 Serf collects debris. 12055_ U-05 Engineer builds a Wall. 12056_ HV Slug penetrates AD-0RF. 12056_ AD-0RF suffers critical hit (Destroy). 12056_ HV Slug penetrates Wall. 12056_ K-01 Serf destroyed. 12059_ HV Slug penetrates Wall. Map ----- +----------------------------------------------------+ | | | | | | | | | | | | | | | | | | | | | | | | | | | | | | | | | | | | | | | | | ??????????????????????????????????????????????? | | ?????????????????????####?????????????????????? | | ????????????????????## ##????????#???????????? | | ??????????????????### #?????? ##??????????? | | ??????????######### ##### ! ##?????????? | | ?????????? @^ !!= !#???????? | | ?????????????????# =%##### < #??????? | | ?????????????????## =i##??????? ! #??????? | | ??????????????????#### #####???????#??????? | | ?????????????????????## ##?????????????? | | ??????????????????????; #?????????????? | | ?????????????????????### ## #?????????????? | | ???????????????????????##; #### #????????????? | | ????????????????????????##u # #???????????? | | ?????????????????????????" ## #####?#########?? | | ?????????????????????????# ## #?????# #?? | | ?????????????????????????# ## ###???# #?? | | ?????????????????????????# ## #???# #?? | | ?????????????????????????# ####!##### #?? | | ?????????????????????????# #??# % #?? | | ????????????????????????? #??### ### #?? | | ?????????????????????????# ?????# #?# #?? | | ?????????????????????????? ?????# #?# """ #?? | | ?????????????????????????? ?????# #?# """ #?? | | ?????????????????????????? ?????# #?# """ #?? | | ?????????????????????????? ?????# #?# #?? | | ?????????????????????????? ????? #?# """ #?? | | ?????????????????????????? ????? ?# """ #?? | | ???????????????????????????????? ?# ""?? #?? | | ???????????????????????????????? ?# ??? #?? | +----------------------------------------------------+ Best States ------------- Heat Dissipation 98 Energy Generation 19 Energy Capacity 310 Matter Stores 300 Matter Capacity 300 Sight Range 16 Terrain Scan Range 16 Terrain Scan Density 10 Armor Coverage 525 Weapon Shielding 66 Evasion (%) 40 Core Analysis 8 Recoil Reduction 2 Trap Extractor Capacity 6 Item Schematics ----------------- Huge Storage Unit | -10/Materials | Hacked Structural Scanner | -9/Materials | Scanalyzed Imp. Trap Extractor | -9/Materials | Scanalyzed Imp. Datajack | -9/Materials | Scanalyzed Robot Schematics ------------------ None Fabricated ------------ Nothing Alien Tech Used ----------------- None Achievements -------------- None Challenges ------------ Trapped Game ------ Seed GravitonDamperWell Manual? 0 Play Time 01:23:49 Cumulative 505.8 hours Start 2023.12.04 @ 17:49:52 End 2023.12.08 @ 12:33:30 Sessions 10 Manual Loads 0 Difficulty Rogue Special Mode None Game No. 94 Rogue 87 Adventurer 1 Explorer 6 Win Type - Total 40 Types 13/3/13/1/1/1/6/1/1 Lore% 93 Gallery% 94 Achievement% 83 Wizard Run 0 Options --------- ASCII 0 Keyboard 0 Movement Mouse Keybinds 0 Fullscreen 1 Font 24/Smallcaps Map View 76x50 Tactical HUD 1 Map Filters NONE Filters NONE Steam 1 RUN: 093dc9e9-c75d-4347-870d-18289726141f